{"text_format":"1","workbook":"xlsx","n_sheets":10,"sheets":["GLOBAL","Mag1","Mag2","Mag3","Mag4","Mag5","Mag6","Mag7","Mag8","Mag9"],"not_rendered":{"charts":0,"images":0,"macros":1,"external_links":0,"defined_names":3,"comments":0,"pivot_tables":0},"unopened":[],"bounds":{"document_bytes":16777216,"sheet_cells":100000,"rows_first":2000,"rows_last":500,"rows_between":2000,"halvings":0,"cell_chars":16384,"cell_head_chars":4096},"cells_cut":0,"cells_raw":0,"read":"whole","date_system":"1900"}

{"sheet":"GLOBAL","index":0,"n_rows":471,"n_cols":9,"rows_kept":471,"cut":false,"hidden":false,"merged":[[1,0,1,6]]}
[]
["POINT SUR OPERATIONS  2016"]
[]
["Période","Clé","Centrale","Articles","Tonnage Prévu","Tonnage réalisé","Observation"]
["Sem 53 et 1",{"$f":"IF(C5=\"\",B4,MID(C5,1,4))","v":"Mag5"},"Mag5","produit1 x2 "," remontee 1 390 colis","1 771 colis cdés/1 584 colis livrés 6 336 pièces"]
[null,"Mag5"]
["Sem 2 et 3","Mag5","Mag5","produit1  ","4 000 pces remontee 3 605 pces","604 colis 4 228 pièces"]
[null,"Mag5"]
["Sem 1","Mag7","Mag7","partie9 de produit2 x6 neutre","dispo 3 tonnes / remontée 6t","1 021 colis 6 371 kgs"]
[null,"Mag7"]
["Sem 1","Mag4","Mag4 Trad","Bloc produit2             ming",null,"200  colis promo retle +  494 colis FDC"]
[null,"Mag4",null,"partie1 produit2         Ming",null,"209 colis promo +  320 colis FDC"]
[null,"Mag4"]
["Sem 1 et 2","Mag4","Mag4 Trad","produit3  x4",null,"119 colis  375 kgs"]
[null,"Mag4"]
["Sem 1 à 4","Mag8","Mag8","partie5 x4",null,"75 colis 257 kgs"]
[null,"Mag8",null,"produit3 x4 ",null,"4 colis 12 kgs"]
[null,"Mag8",null,"produit3 x4 ",null,"5 colis 15 kgs",null,null," "]
[null,"Mag8",null,"partie1 produit1 x4",null,"576 colis 2 835 kgs"]
[null,"Mag8",null,"partie3 produit1 x6",null,"535 colis 2 119 kgs"]
[null,"Mag8",null,"partie2 produit1 ",null,"561 colis 2 284 kgs"]
[null,"Mag8",null,"partie6 produit1 x10",null,"466 colis 1 166 kgs"]
[null,"Mag8",null,"Haut partie1 produit1",null,"122 colis 447 kgs"]
[null,"Mag8",null,"partie7 de produit1",null,"153 colis 512  kgs"]
[null,"Mag8",null,"partie8 produit1 pot",null,"483 colis 838 kgs"]
[null,"Mag8",null,"produit4",null,"69 colis 276 pièces"]
[null,"Mag8"]
["Sem 2","Mag2","Mag2 Trad","partie4 produit2 ","remontee 54 colis","54 coli 269 kgs"]
[null,"Mag2"]
["Sem 2","Mag7","Mag7","produit1   Jaune","Dispo 2 000 pces / Remontée 3 493 pces","584 colis  3 696 pièces"]
[null,"Mag7"]
["Sem 2","Mag6","Mag6","produit1   Noir","2 500 pièces","1 981 pièces  2320 kgs"]
[null,"Mag6"]
["Sem 2","Mag4","Mag4 Trad","Bloc produit2             ONC","800 colis promo +  colis  140 FDC"," 951 colis promo retle +  179 colis FDC"]
["Sem 2","Mag4","Mag4 Trad","partie1 produit2         Ming","700 colis promo +  150 colis FDC","742colis promo retle+  160 colis FDC"]
[null,"Mag4"]
["Sem 3","Mag4","Mag4 Trad","produit1  ",null,"170 colis 680 pièces"]
[null,"Mag4"]
["Sem 3 et 4","Mag5","Mag5","produit1  ","Dispo 3 000 pièces","256 colis 1 792 pièces"]
[null,"Mag5",null,"produit4 ","Dispo 3 000 pièces","77 colis  616 pièces"]
[null,"Mag5"]
["Sem 4 et 5","Mag3","Mag3","partie3 de produit1 x6",null,"4 502 colis 13 729kgs"]
[null,"Mag3",null,"Lot produit5 12501",null,"366 colis 1 561 kgs"]
[null,"Mag3"]
["Sem 4","Mag4","Mag4 ","partie1 produit1 3 kgs (10506) ONC","Prev 3 T","796 colis  2 810 kgs"]
[null,"Mag4"]
["Sem 5 et 6 ","Mag4","Mag4 Trad","produit4 ",null,"84 colis 332 pièces"]
[null,"Mag4"]
["Sem 5 à 8","Mag6","Mag6","produit4",null,"18 colis 144 pièces"]
[null,"Mag6"]
["Sem 6 et 7","Mag7","Mag7","partie1 de produit2 ","10 Tonnes","1 880 colis 5 600 kgs"]
[null,"Mag7"]
["Sem 6","Mag6","Mag6","produit1   Noir","2 500 pièces","345 colis 2 415 pièces"]
[null,"Mag6"]
["Sem 6","Mag2","Mag2","partie3 produit2 ",null,"413 colis 3 900 kgs"]
[null,"Mag2",null,"partie3 produit1 blc ",null,"276 colis 2 832 kgs"]
[null,"Mag2",null,"partie3 produit1 jne ",null,"315 colis 3 193 kgs"]
[null,"Mag2"]
["Sem 7 et 8","Mag4","Mag4 Trad","produit3 Trad 12238",null,"124 colis 389 kgs"]
[null,"Mag4"]
["Sem 8 et 9","Mag5","Mag5","produit1 lot x2",null,"204 colis 816 pièces"]
[null,"Mag5"]
["Sem 9","Mag4","Mag4 ","produit1   Jaune","6 à 7 000 pièces","1 268 colis  5 072 pièces"]
[null,"Mag4"]
["Sem 9 et 10","Mag4","Mag4 Trad","produit6 trad  (12505)",null,"124 colis 992 pièces"]
[null,"Mag4"]
["Sem 9","Mag6","Mag6","produit1   Noir","2 500 pièces","292 colis  2 044 pièces"]
[null,"Mag6"]
["Sem 9",{"$f":"IF(C69=\"\",B68,MID(C69,1,4))","v":"Mag2"},"Mag2","produit1 x2 blanc",null,"189 colis 756 lots"]
[null,"Mag2",null,"produit1 x2 jaune",null,"674 colis 2 696 lots"]
[null,"Mag2",null,"partie9  x4 blche 29010",null,"185 colis 403 kgs"]
[null,"Mag2",null,"partie9  x4 jaune 29011",null,"575 colis 1 252 kgs"]
[null,"Mag2"]
["Sem 10","Mag2","Mag2 Trad","partie1 produit2  5 kgs","400  colis  2t5","441 colis 3 482 kgs"]
[null,"Mag2"]
["Sem 10","Mag7","Mag7"," partie3 s/at","705 colis ","712 colis 3 146 kgs"]
[null,"Mag7"]
["Sem 10","Mag3","Mag3","produit1   jaune","9 000 pièces","869 colis 6 083 pièces"]
[null,"Mag3",null,"Haut de partie1 de produit1 ",null,"1 413 colis 4 366 kgs"]
[null,"Mag3"]
["Sem 11","Mag2","Mag2 Trad","Bloc produit2  10 kgs",null,"388 colis  4 617 kgs"]
[null,"Mag2"]
[null,"Mag2"]
["Sem 10 à 12","Mag8","Mag8","partie5 produit2 x4"]
[null,"Mag8",null,"produit3 x4 ",null,null,null," "]
[null,"Mag8",null,"produit3 x4 "]
[null,"Mag8"]
["Sem 11 et 12","Mag3","Mag3","produit4 ","7 500 pièces","839 colis 6 284 pièces"]
[null,"Mag3",null," produit2 ",null,"142 colis 710 pièces"]
[null,"Mag3"]
["Sem 11 et 12","Mag4","Mag4 Trad","produit4 ",null,"67 colis  268 pièces"]
[null,"Mag4"]
["Sem 12 et 13","Mag4","Mag4 Trad","Bloc de produit2",null,"entrepot1 189 colis / entrepot2 78 colis "]
[null,"Mag4"]
["Sem 12 ","Mag6","Mag6"," produit2 ",null,"28 colis  229 kgs"]
[null,"Mag6",null,"Coffret produit3",null,"20 colis  80 kgs"]
[null,"Mag6",null,"produit3",null,"17 colis  56 kgs"]
[null,"Mag6"]
["Sem 13 ","Mag5","Mag5","produit1 x2 ","765 colis","631 colis 2 524 pièces"]
[null,"Mag5"]
[null,"Mag5"]
["Sem 13 et 14","Mag4","Mag4 Trad","produit1  ",null,"200 colis 800 pièces"]
[null,"Mag4"]
["Sem 14","Mag2","Mag2","partie9 de produit2 x6",null,"465 colis 2 790 kgs"]
[null,"Mag2"]
[null,"Mag2"]
["Sem 14","Mag2","Mag2","produit1   jaune","3 000 pièces","563 colis 3 809 pièces"]
[null,"Mag2",null,"produit1   noir","1 500 pièces","193 colis 1 285 pièces"]
[null,"Mag2",null,"produit1","2 000 pièces","289 colis 1 945 pièces"]
[null,"Mag2",null,"partie1 produit1  x2 jaune",null,"627 colis 2 062 kgs"]
[null,"Mag2",null,"partie1 produit1  x2 noir",null,"192 colis 684 kgs"]
[null,"Mag2",null,"partie3 produit1  x2 jaune",null,"745 colis 1 334 kgs"]
[null,"Mag2",null,"partie3 produit1  x2 noir",null,"238 colis 404 kgs"]
[null,"Mag2",null,"produit1 x2 blanc",null,"690 colis 2 760 pièces"]
[null,"Mag2",null,"partie2 produit1  blche",null,"512 colis 513 kgs"]
[null,"Mag2",null,"partie2 produit1  jaune",null,"526 colis 2 183 kgs"]
[null,"Mag2"]
["Sem 15","Mag4","Mag4 ","produit5 12500",null,"425 colis 962 kgs"]
[null,"Mag4"]
["Sem 15 et 16","Mag2","Mag2 Trad","partie1 de produit2 ",null,"507 colis 2 028 kgs"]
[null,"Mag2"]
["Sem 15 et 16","Mag4","Mag4 Trad","produit1  ",null,"128 colis  512 pièces"]
[null,"Mag4"]
["Sem 15 et 16","Mag6","Mag6","produit1  noir s/f","242 colis ","260 colis  1 820 pièces"]
[null,"Mag6"]
["Sem 16","Mag3","Mag3","partie1 produit1 x6","480 colis","366 colis 1 576 kgs"]
[null,"Mag3",null," produit2 x6","1 170 colis","842 colis 4 476 kgs"]
[null,"Mag3",null,null," "]
["Sem 16","Mag7","Mag7"," produit2 x6",null,"805 colis 3 454 kgs"]
[null,"Mag7"]
["Sem 17","Mag2","Mag2 ÉTÉ","partie1 produit1 ",null,"630 colis 2 632 kgs"]
[null,"Mag2"]
["Sem 17 et 18",{"$f":"IF(C133=\"\",B132,MID(C133,1,4))","v":"Mag4"},"Mag4 Trad","produit1  ",null,"60 colis 285 kgs"]
[null,"Mag4",null,"produit8 s ",null,"29 colis  64 kgs"]
[null,"Mag4"]
["Sem 18 et 19","Mag7","Mag7","produit1  ","500 pièces","130 colis 910 pièces"]
[null,"Mag7"]
["Sem 18","Mag2","Mag2 ÉTÉ","partie2 produit1 ",null,"628 colis 1 884 kgs"]
[null,"Mag2"]
[null,"Mag2"]
["Sem 18","Mag9","Mag9 été"," produit2 poids fixe 400 grs","2 158 colis","2 499 colis 5 997 kgs"]
[null,"Mag9"]
["Sem 18","Mag9","Mag9 été","partie1 produit1  ","1 865 colis","1 787 colis 7 148 kgs"]
[null,"Mag9"]
["Sem  19","Mag4","Mag4 ","produit1   Jaune","6 à 7 000 pièces","1408 colis 5 632 pièces"]
[" ","Mag4"]
["Sem 19","Mag2","Mag2 Trad","partie3 produit2 s/v","399 colis","399 colis 3 910 kgs"]
[null,"Mag2"]
["Sem 19","Mag2","Mag2 ÉTÉ","produit1  ",null,"287 colis 1 377 kgs"]
[null,"Mag2"]
["Sem 19","Mag6","Mag6"," partie3 ( 22649)","538 colis","759 colis 2 826 kgs"]
[null,"Mag6"]
["Sem 19","Mag9","Mag9 One shot","produit1  ","178 colis","178 colis 267 kgs"]
[null,"Mag9"]
[null,"Mag9"]
["Sem 19","Mag8","Mag8","produit5 12500","119 colis","119 colis 277 kgs"]
[null,"Mag8"]
["Sem 19 et 20","Mag4","Mag4 Trad","produit1  ",null,"45 colis 216 kgs"]
[null,"Mag4",null,"produit2",null,"53 colis 117 kgs"]
[null,"Mag4"]
["Sem 20","Mag6","Mag6","produit1   Noir","2 500 pièces","317 colis 2 219 pièces"]
[null,"Mag6"]
["Sem 20","Mag9","Mag9 One shot","partie8","300 colis ","300 colis 1 080 kgs "]
[null,"Mag9"]
[null,"Mag9"]
["Sem 20 21 et 22","Mag8","Mag8","produit8 x11","68 colis","57 colis 188 kgs"]
[null,"Mag8",null,"produit8s x11","83 colis","68 colis 224 kgs"]
[null,"Mag8",null,"produit2","99 colis","81 colis 267 kgs"]
[null,"Mag8",null," partie3 produit1 x3 ","76 colis","59 colis 159 kgs"]
[null,"Mag8",null," partie3 produit1 x3 ","72 colis","50 colis 135 kgs"]
[null,"Mag8",null," partie3 produit1 x3  ","84 colis","66 colis  178 kgs"]
[null,"Mag8",null," produit2 x6","133 colis","109 colis  470 kgs"]
[null,"Mag8"]
[null,"Mag8"]
["Sem 21","Mag2","Mag2 ÉTÉ"," x8",null,"292 colis 934 kgs"]
[null,"Mag2"]
[null,"Mag2"]
["Sem 21","Mag2","Mag2 Trad","produit8 x11",null,"168 colis  840 kgs"]
[null,"Mag2",null,"produit8 x11",null,"380 colis 1 900 kgs"]
[null,"Mag2",null,"produit8 x11",null,"250 colis 500 kgs"]
[null,"Mag2",null,"produit8 x11",null,"313 colis 1 565 kgs"]
[null,"Mag2"]
["Sem 21","Mag2","Mag2 ÉTÉ"," x12",null,"681 colis 3 268 kgs"]
[null,"Mag2"]
["Sem 21","Mag2","Mag2 ÉTÉ","produit8 x11",null,"250 colis 450 kgs"]
[null,"Mag2",null,"produit8 x11",null,"254 colis 457 kgs"]
[null,"Mag2",null,"produit8 x11",null,"223 colis 401 kgs"]
[null,"Mag2"]
["Sem 21","Mag3","Mag3","partie1 produit1 x6",null,"1 561 colis 8 415 kgs"]
[null,"Mag3",null,"partie3 produit1 x6",null,"2 279 colis 8 642 kgs"]
[null,"Mag3"]
["Sem 21","Mag6","Mag6"," partie3 ( 22649)",null,"102 colis 385 kgs"]
[null,"Mag6"]
["Sem 21 et 22","Mag4","Mag4 Trad","produit8 x11",null,"27 colis  123 kgs"]
[null,"Mag4",null,"produit8 ",null,"51 colis 108 kgs"]
[null,"Mag4"]
["Sem 21 à 23",{"$f":"IF(C197=\"\",B196,MID(C197,1,4))","v":"Mag8"},"Mag8","produit8 x11","92 colis","51 colis 168 kgs"]
[null,"Mag8",null,"produit8 x11  ","88 colis","64 colis 178 kgs"]
[null,"Mag8",null,"produit8 x11","82 colis","21 colis 66 kgs"]
[null,"Mag8",null," produit2 x6 ","41 colis"]
[null,"Mag8",null,"partie9 produit2 x2 ","49 colis","54 colis 79 kgs"]
[null,"Mag8",null,"partie3 produit1 x2 ",null,"77 colis 175 kgs"]
[null,"Mag8",null,"partie1 produit1 x6 "]
[null,"Mag8"]
["Sem  21 à 24","Mag4","Mag4 ","produit1 blc  "]
[null,"Mag4","Mag4 ","produit1 jne "]
[null,"Mag4","Mag4 ","partie1 produit1 x6 blche "]
[null,"Mag4",null,"partie1 produit1 x6 jne "]
[null,"Mag4",null,"partie3 produit1 x6 jne "]
[null,"Mag4",null,"partie3 produit1 x6 blc "]
[null,"Mag4",null," produit2 x6 "]
[null,"Mag4",null,"produit8 x11 "]
[null,"Mag4",null,"Merguez x11 "]
[null,"Mag4"]
["Sem 22","Mag6","Mag6","produit4",null,"236 pièces  306 kgs"]
[null,"Mag6",null,"produit1  noir",null,"441 pièces 722 kgs"]
[null,"Mag6",null,"produit3 x3 ",null,"39 colis 131 kgs"]
[null,"Mag6",null,"produit3 x3 ",null,"34 colis 114 kgs"]
[null,"Mag6"]
["Sem 22","Mag6","Mag6","produit3 x3 ","445 colis","499 colis  2 321 kgs"]
[null,"Mag6"]
[null,"Mag6"]
["Sem 22","Mag9","Mag9 été"," produit2 poids fixe 400 grs","1 775 colis","1 776 colis  4 262 kgs"]
[null,"Mag9"]
[null,"Mag9"]
["Sem 22 et 23","Mag3","Mag3","produit3 x3 ",null,"474 colis  1 610 kgs"]
[null,"Mag3",null,"produit3 x3 ",null,"474 colis 1 622 kgs"]
[null,"Mag3",null,"Mini  produit1  ",null,"287 colis 1 087 kgs"]
[null,"Mag3",null,"Mini  produit1 ",null,"264 colis 1 001 kgs"]
[null,"Mag3",null,"Mini  produit1 ",null,"272 colis 1 043 kgs"]
[null,"Mag3"]
["Sem 23 et 24","Mag4","Mag4 Trad","produit4 ",null,"45 colis 180  pces"]
[null,"Mag4"]
["Sem 23","Mag2","Mag2 ÉTÉ","partie1 produit2 ",null,"350 colis  1 771 kgs"]
[null,"Mag2",null,"partie2ron produit1 ",null,"402 colis  1 285 kgs"]
[null,"Mag2"]
["Sem 23","Mag2","Mag2 Trad","partie1 produit2 ",null,"378 colis 4 433 kgs"]
[null,"Mag2"]
["Sem  23 et 24","Mag4","Mag4 ","produit1 blc  "]
[null,"Mag4","Mag4 ","produit1 jne "]
[null,"Mag4","Mag4 ","partie1 produit1 x6 blche "]
[null,"Mag4",null,"partie1 produit1 x6 jne "]
[null,"Mag4",null,"partie3 produit1 x6 jne "]
[null,"Mag4",null,"partie3 produit1 x6 blc "]
[null,"Mag4",null," produit2 x6 "]
[null,"Mag4",null,"produit8 x11 "]
[null,"Mag4",null,"produit3 x3 "]
[null,"Mag4",null,"produit3 x3 "]
[null,"Mag4",null,"produit3 x3 "]
[null,"Mag4"]
["Sem 24","Mag6","Mag6","produit1  Noir","235 colis ","273 colis 1 911 pièces"]
[null,"Mag6"]
["Sem 24","Mag9","Mag9 été","produit3 x3 ","500 colis","500 colis  750 kgs"]
[null,"Mag9"]
["Sem 24","Mag9","Mag9 été","produit3 x3 ","266 colis","266 colis  957 kgs"]
[null,"Mag9"]
["Sem 25","Mag8","Mag8","produit3 x3 "]
[null,"Mag8"]
[null,"Mag8"]
["Sem 25","Mag6","Mag6","Haut de partie1 produit1 ","294 colis","387 colis 1 548 pièces"]
[null,{"$f":"IF(C261=\"\",B260,MID(C261,1,4))","v":"Mag6"}]
["Sem 25","Mag2","Mag2","produit1",null,"7 colis"]
[null,"Mag2",null,"produit1",null,"95 colis"]
[null,"Mag2"]
["Sem 25 et 26","Mag6","Mag6"," partie3 produit1"," ","321 colis  866 kgs"]
[null,"Mag6",null,null,null," "]
["Sem 25 et 26","Mag7","Mag7"," partie3 produit1",null,"636 colis 1 717 kgs"]
[null,"Mag7"]
["Sem  25 et 26","Mag4","Mag4 TRAD","partie3 produit2 ",null,"62 colis 132 kgs"]
[null,"Mag4"]
[null,"Mag4"]
["Sem 26","Mag5","Mag5","Haut partie1 produit1 ",null,"225 colis "]
[null,"Mag5",null,"Haut partie1 produit1 ",null,"210 colis"]
[null,"Mag5"]
["Sem 25","Mag3","Mag3"," produit2 x6",null,"392 colis 1 676 kgs"]
[null,"Mag3",null,"partie3 +partie1 produit1",null,"454 colis  2 526 kgs"]
[null,"Mag3",null,"partie6 de produit1",null,"1 133 colis 4 532 kgs"]
[null,"Mag3"]
["Sem 25","Mag9","Mag9 été","partie3 produit2 ","182 colis","182 colis  273 kgs"]
[null,"Mag9"]
["Sem 25","Mag9","Mag9 été","partie3 produit2 ","205 colis","205 colis 738 kgs"]
[null,"Mag9"]
["Sem 26","Mag2","Mag2","produit1",null,"32 colis "]
[null,"Mag2",null,"produit1",null,"3 colis "]
[null,"Mag2"]
["Sem 26","Mag2","Mag2 ÉTÉ","partie2ron produit1 ",null,"756  colis 2 484 kgs"]
[null,"Mag2",null,"partie2ron produit1 ",null,"603 colis 1 947 kgs"]
[null,"Mag2"]
["Sem 26","Mag2","Mag2 Trad","partie1 produit2 ",null,"330 colis 2 334 kgs"]
[null,"Mag2",null,"partie3 produit2 ",null,"309 colis 3 543 kgs"]
[null,"Mag2",null,"partie1 produit1   blche",null,"197 colis 1 866 kgs"]
[null,"Mag2",null,"partie1 produit1   jaune",null,"248 colis 2 406 kgs"]
[null,"Mag2",null,"partie3 produit1  blc 10kgs",null,"166 colis 1 451 kgs"]
[null,"Mag2",null,"partie3 produit1  jne 10kgs",null,"328 colis 2 790 kgs"]
[null,"Mag2"]
["Sem 27","Mag2","Mag2","produit1  ",null,"52 colis "]
[null,"Mag2",null,"produit1  ",null," 3 colis "]
[null,"Mag2"]
[null,"Mag2"]
["Sem 27","Mag2","Mag2 ÉTÉ"," produit2 x12",null,"198 colis 999 kgs"]
[null,"Mag2"]
["Sem 27","Mag2","Mag2 ÉTÉ","produit8 x6",null,"298 colis 536 kgs"]
[null,"Mag2",null,"produit8 x7",null,"276 colis 497 kgs"]
[null,"Mag2",null,"produit8s s x6",null,"231 colis 415 kgs"]
[null,"Mag2"]
[null,"Mag2"]
["Sem 27","Mag7","Mag7"," partie3 produit1 ",null,"425 colis 1 147 kgs"]
[null,"Mag7",null," partie3 produit1 ",null,"437 colis 1 179 kgs"]
[null,"Mag7",null," partie3 produit1 ",null,"443 colis 1 196 kgs"]
[null,"Mag7"]
["Sem 27","Mag3","Mag3","produit1  (8200)",null,"936 pces et 1 084 pces"]
[null,"Mag3",null,"produit1",null,"320 pces et 410 pces"]
[null,"Mag3"]
["Sem  27 et 28","Mag4","Mag4 TRAD","produit8  ",null,"102 colis  2 062kgs"]
[null,"Mag4"]
["Sem 27 28 et 29","Mag8","Mag8","produit8 x11  ",null,"30 colis 100 kgs"]
[null,"Mag8",null,"produit8 x11  ",null,"32 colis 106 kgs"]
[null,"Mag8",null,"produit8s s x11 ",null,"36 colis 117 kgs"]
[null,"Mag8",null," produit2 x6",null,"113 colis 529 kgs"]
[null,"Mag8",null," produit2 x7",null,"10 colis 23 kgs"]
[null,"Mag8",null," produit2 x8",null,"15 colis 32 kgs"]
[null,"Mag8",null," produit2 x9",null,"34 colis 74 kgs"]
[null,"Mag8",null," produit2 x10"]
[null,"Mag8",null," ",null,"52 colis 153 kgs"]
[null,{"$f":"IF(C325=\"\",B324,MID(C325,1,4))","v":"Mag8"},null," ",null,"52 colis 144 kgs"]
[null,"Mag8",null,"   ",null,"40 colis 110 kgs"]
[null,"Mag8"]
["Sem 28","Mag6","Mag6","produit1  noir","244 colis 1708 pièces","276 colis 1 838 pièces"]
[null,"Mag6"]
[null,"Mag6"]
["Sem 28","Mag2","Mag2  Trad","partie1 produit1 jaune ",null,"262 colis 2 356 kgs"]
[null,"Mag2",null,"partie1 produit1 blc ",null,"87 colis 788 kgs"]
[null,"Mag2"]
["Sem 28","Mag9","Mag9 été"," produit2 poids fixe 400 grs","Anlé"]
[null,"Mag9"]
[null,"Mag9"]
["Sem 29","Mag2","Mag2 ÉTÉ","produit8 x6","19 colis","49 colis 88 kgs"]
[null,"Mag2",null,"produit8 x6","18 colis","52 colis 93 kgs"]
[null,"Mag2",null,"produit8  x6","19 colis","41 colis 73 kgs"]
[null,"Mag2"]
["Sem 29","Mag7","Mag7","partie1 produit1  x2",null,"404 colis 1 185 kgs"]
[null,"Mag7",null,"partie1 produit1",null,"322 colis 962  kgs"]
[null,"Mag7",null,"partie1 produit1  x2",null,"402 colis 1 222 kgs"]
[null,"Mag7"]
["Sem 30","Mag2","Mag2 Trad","Haut de partie1 produit1"]
[null,"Mag2",null,"Haut de partie1 produit1"]
[null,"Mag2"]
["Sem 31","Mag2","Mag2 ÉTÉ","produit8 x5"]
[null,"Mag2",null,"produit8 x6"]
[null,"Mag2",null,"produit8 x6 s"]
[null,"Mag2"]
["Sem 31","Mag9","Mag9 été","partie1 de produit1","2 322 colis"]
[null,"Mag9"]
["Sem  31 et 32","Mag4","Mag4 TRAD","produit1 "]
[null,"Mag4",null,"produit2"]
[null,"Mag4"]
["Sem 32","Mag2","Mag2 Trad","partie3 produit2 "]
[null,"Mag2",null,"partie3 produit1 blanc "]
[null,"Mag2",null,"partie3 produit1 jaune "]
[null,"Mag2"]
["Sem  33","Mag4","Mag4 ","partie9 de produit2 x6 "]
[null,"Mag4"]
[null,"Mag4"]
["Sem 33","Mag9","Mag9 One shot","partie8","134 colis"]
[null,"Mag9"]
[null,"Mag9"]
["Sem 33","Mag7","Mag7"," produit2","268 colis"]
[null,"Mag7",null," produit3","267 colis"]
[null,"Mag7",null," produit4","292 colis"]
[null,"Mag7"]
["Sem 34","Mag2","Mag2 ÉTÉ"," produit2 x12"]
[null,"Mag2"]
["Sem 34","Mag9","Mag9 été"," produit2","873 colis"]
[null,"Mag9"]
["Sem 35","Mag2","Mag2 Trad","partie1 produit2 "]
[null,"Mag2",null,"partie1 produit1 blanc "]
[null,"Mag2",null,"partie1 produit1 jaune "]
[null,"Mag2"]
["Sem 35","Mag2","Mag2 ","produit1  jaune sf"]
[null,"Mag2",null,"produit1  blanc sf"]
[null,"Mag2"]
["Sem 35","Mag9","Mag9 One shot","partie1 produit2 ","216 colis"]
[null,"Mag9",null,"partie1 produit2 ","250 colis"," "]
[null,"Mag9"]
["Sem 35","Mag9","Mag9 One shot","partie1 produit2 ","634 colis"]
[null,"Mag9"]
["Sem 34 et 35","Mag3","Mag3","partie1 produit2 "]
[null,"Mag3"]
[null,{"$f":"IF(C389=\"\",B388,MID(C389,1,4))","v":"Mag3"}]
["Sem 36","Mag2","Mag2 Trad","produit1","4 000 pièces"]
[null,"Mag2"]
[null,"Mag2"]
["Sem 36 et 37","Mag7","Mag7","produit1","800 pièces"]
[null,"Mag7"]
[null,"Mag7"]
["Sem  37","Mag4","Mag4 ","produit1   Jaune","6 à 7 000 pièces"]
[null,"Mag4"]
["Sem 36 et 37","Mag2","Mag2 ","Aiguillette produit1"]
[null,"Mag2",null,"Aiguillette produit1"]
[null,"Mag2"]
["Sem 36 ","Mag2","Mag2 Trad","partie1 produit2 "]
[null,"Mag2",null,"partie1 produit1 blanc "]
[null,"Mag2",null,"partie1 produit1 jaune "]
[null,"Mag2"]
["Sem 36","Mag7","Mag7","partie9 + partie1 produit2"]
[null,"Mag7"]
[null,"Mag7"]
["Sem 37","Mag5","Mag5","produit1 x1","193 colis 1 544 pces"]
[null,"Mag5"]
["Sem 37","Mag2","Mag2 ","produit1 x2 blanc"]
[null,"Mag2"]
[null,"Mag2","Mag2 ","produit1 x2 jaune"]
[null,"Mag2"]
["Sem  37 et 38","Mag4","Mag4 TRAD","produit1   Jaune"]
[null,"Mag4"]
["Sem 37","Mag4","Mag4 ","produit1   Jaune"]
[null,"Mag4"]
[null,"Mag4"]
["Sem 38 ET 39","Mag8","Mag8","Haut partie1 de produit1 "]
[null,"Mag8",null,"partie9 de produit2 poids fixe"]
[null,"Mag8",null,"partie6 de produit1"]
[null,"Mag8",null,"partie4 de produit2"]
[null,"Mag8",null,"partie1 produit2 x1"]
[null,"Mag8",null,"partie3 produit1 x6"]
[null,"Mag8",null,"partie5 de produit2"]
[null,"Mag8",null,"partie5 de produit3"]
[null,"Mag8",null,"partie5 de produit4"]
[null,"Mag8",null,"produit3 x4 "]
[null,"Mag8",null,"produit3 x4 "]
[null,"Mag8",null,"produit4"]
[null,"Mag8"]
["Sem  39 et 40","Mag4","Mag4 TRAD","produit4 "]
[null,"Mag4"]
["Sem  40","Mag4","Mag4","produit1 x2"]
[null,"Mag4",null,"partie1 produit1 3kgs 10506"]
[null,"Mag4",null,"partie3 produit1 x8  21443"]
[null,"Mag4"]
["Sem  41 et 42","Mag4","Mag4 TRAD","produit3 x4   s"]
[null,"Mag4"]
["Sem  41 ","Mag4","Mag4","partie9 de produit2 x6 "]
[null,"Mag4"]
[null,"Mag4"]
["Sem 41","Mag2","Mag2 Trad","partie1 produit2 "]
[null,"Mag2",null,null," "]
[null,"Mag2"]
["Sem 40 et 41","Mag7","Mag7","produit1  jaune "]
[null,"Mag7",null,"produit4"]
[null,"Mag7",null,"partie1 x4 jne"]
[null,"Mag7"]
[null,"Mag7"]
["Sem 43","Mag2","Mag2 ","produit1  jaune x4"]
[null,"Mag2",null,"produit1  noir x4"]
[null,{"$f":"IF(C453=\"\",B452,MID(C453,1,4))","v":"Mag2"},null,"partie1 produit1 jaune x4"]
[null,"Mag2",null,"partie3 produit1  jaune x2"]
[null,"Mag2"]
["Sem  43 et 44","Mag4","Mag4 TRAD","produit3 x4 "]
[null,"Mag4"]
["Sem 44 et 45","Mag3","Mag3","produit3 s x4 s/at"]
[null,"Mag3",null,"produit3 x4 "]
[null,"Mag3",null,"produit3 x4 "]
[null,"Mag3",null,"produit3 x4 "]
[null,"Mag3",null,"produit3 x4 "]
[null,"Mag3"]
["Sem 49 à 52","Mag2","Mag2 ","produit3 x4 "]
[null,"Mag2",null,"produit3 x4 "]
[null,"Mag2"]
[null,"Mag2"]
[null,"Mag2"]
[null,"Mag2"]
[null,"Mag2"]
[null,"Mag2"]

{"sheet":"Mag1","index":1,"n_rows":147,"n_cols":6,"rows_kept":147,"cut":false,"hidden":false,"merged":[[2,2,3,4]]}
[]
[]
[null,null,"POINT SUR OPERATIONS  2016"]
[]
[null,null,null,"Mag1"]
[]
[]
[]
["Période","Centrale","Articles","Tonnage Prévu","Tonnage réalisé","Observation"]
["Sem 2","Mag2 Trad","partie4 produit2 ","remontee 54 colis","54 coli 269 kgs"]
[]
["Sem 6","Mag2","partie3 produit2 ",null,"413 colis 3 900 kgs"]
[null,null,"partie3 produit1 blc ",null,"276 colis 2 832 kgs"]
[null,null,"partie3 produit1 jne ",null,"315 colis 3 193 kgs"]
[]
["Sem 9","Mag2","produit1 x2 blanc",null,"189 colis 756 lots"]
[null,null,"produit1 x2 jaune",null,"674 colis 2 696 lots"]
[null,null,"partie9  x4 blche 29010",null,"185 colis 403 kgs"]
[null,null,"partie9  x4 jaune 29011",null,"575 colis 1 252 kgs"]
[]
["Sem 10","Mag2 Trad","partie1 produit2  5 kgs","400  colis  2t5","441 colis 3 482 kgs"]
[]
["Sem 11","Mag2 Trad","Bloc produit2  10 kgs",null,"388 colis  4 617 kgs"]
[]
[]
["Sem 14","Mag2","partie9 de produit2 x6",null,"465 colis 2 790 kgs"]
[]
[]
["Sem 14","Mag2","produit1   jaune","3 000 pièces","563 colis 3 809 pièces"]
[null,null,"produit1   noir","1 500 pièces","193 colis 1 285 pièces"]
[null,null,"produit1","2 000 pièces","289 colis 1 945 pièces"]
[null,null,"partie1 produit1  x2 jaune",null,"627 colis 2 062 kgs"]
[null,null,"partie1 produit1  x2 noir",null,"192 colis 684 kgs"]
[null,null,"partie3 produit1  x2 jaune",null,"745 colis 1 334 kgs"]
[null,null,"partie3 produit1  x2 noir",null,"238 colis 404 kgs"]
[null,null,"produit1 x2 blanc",null,"690 colis 2 760 pièces"]
[null,null,"partie2 produit1  blche",null,"512 colis 513 kgs"]
[null,null,"partie2 produit1  jaune",null,"526 colis 2 183 kgs"]
[]
["Sem 15 et 16","Mag2 Trad","partie1 de produit2 ",null,"507 colis 2 028 kgs"]
[]
["Sem 17","Mag2 ÉTÉ","partie1 produit1 ",null,"630 colis 2 632 kgs"]
[]
["Sem 18","Mag2 ÉTÉ","partie2 produit1 ",null,"628 colis 1 884 kgs"]
[]
[]
["Sem 19","Mag2 Trad","partie3 produit2 s/v","399 colis","399 colis 3 910 kgs"]
[]
["Sem 19","Mag2 ÉTÉ","produit1  ",null,"287 colis 1 377 kgs"]
[]
["Sem 21","Mag2 ÉTÉ"," x8",null,"292 colis 934 kgs"]
[]
[]
["Sem 21","Mag2 Trad","produit8 x11",null,"168 colis  840 kgs"]
[null,null,"produit8 x11",null,"380 colis 1 900 kgs"]
[null,null,"produit8 x11",null,"250 colis 500 kgs"]
[null,null,"produit8 x11",null,"313 colis 1 565 kgs"]
[]
["Sem 21","Mag2 ÉTÉ"," x12",null,"681 colis 3 268 kgs"]
[]
["Sem 21","Mag2 ÉTÉ","produit8 x11",null,"250 colis 450 kgs"]
[null,null,"produit8 x11",null,"254 colis 457 kgs"]
[null,null,"produit8 x11",null,"223 colis 401 kgs"]
[]
["Sem 23","Mag2 ÉTÉ","partie1 produit2 ",null,"350 colis  1 771 kgs"]
[null,null,"partie2ron produit1 ",null,"402 colis  1 285 kgs"]
[]
["Sem 23","Mag2 Trad","partie1 produit2 ",null,"378 colis 4 433 kgs"]
[]
["Sem 25","Mag2","produit1",null,"7 colis"]
[null,null,"produit1",null,"95 colis"]
[]
["Sem 26","Mag2","produit1",null,"32 colis "]
[null,null,"produit1",null,"3 colis "]
[]
["Sem 26","Mag2 ÉTÉ","partie2ron produit1 ",null,"756  colis 2 484 kgs"]
[null,null,"partie2ron produit1 ",null,"603 colis 1 947 kgs"]
[]
["Sem 26","Mag2 Trad","partie1 produit2 ",null,"330 colis 2 334 kgs"]
[null,null,"partie3 produit2 ",null,"309 colis 3 543 kgs"]
[null,null,"partie1 produit1   blche",null,"197 colis 1 866 kgs"]
[null,null,"partie1 produit1   jaune",null,"248 colis 2 406 kgs"]
[null,null,"partie3 produit1  blc 10kgs",null,"166 colis 1 451 kgs"]
[null,null,"partie3 produit1  jne 10kgs",null,"328 colis 2 790 kgs"]
[]
["Sem 27","Mag2","produit1  ",null,"52 colis "]
[null,null,"produit1  ",null," 3 colis "]
[]
[]
["Sem 27","Mag2 ÉTÉ"," produit2 x12",null,"198 colis 999 kgs"]
[]
["Sem 27","Mag2 ÉTÉ","produit8 x6",null,"298 colis 536 kgs"]
[null,null,"produit8 x7",null,"276 colis 497 kgs"]
[null,null,"produit8s s x6",null,"231 colis 415 kgs"]
[]
[]
["Sem 28","Mag2  Trad","partie1 produit1 jaune ",null,"262 colis 2 356 kgs"]
[null,null,"partie1 produit1 blc ",null,"87 colis 788 kgs"]
[]
["Sem 29","Mag2 ÉTÉ","produit8 x6","19 colis","49 colis 88 kgs"]
[null,null,"produit8 x6","18 colis","52 colis 93 kgs"]
[null,null,"produit8  x6","19 colis","41 colis 73 kgs"]
[]
["Sem 30","Mag2 Trad","Haut de partie1 produit1"]
[null,null,"Haut de partie1 produit1"]
[]
["Sem 31","Mag2 ÉTÉ","produit8 x5"]
[null,null,"produit8 x6"]
[null,null,"produit8 x6 s"]
[]
["Sem 32","Mag2 Trad","partie3 produit2 "]
[null,null,"partie3 produit1 blanc "]
[null,null,"partie3 produit1 jaune "]
[]
["Sem 34","Mag2 ÉTÉ"," produit2 x12"]
[]
["Sem 35","Mag2 Trad","partie1 produit2 "]
[null,null,"partie1 produit1 blanc "]
[null,null,"partie1 produit1 jaune "]
[]
["Sem 35","Mag2 ","produit1  jaune sf"]
[null,null,"produit1  blanc sf"]
[]
["Sem 36","Mag2 Trad","produit1","4 000 pièces"]
[]
[]
["Sem 36 et 37","Mag2 ","Aiguillette produit1"]
[null,null,"Aiguillette produit1"]
[]
["Sem 36 ","Mag2 Trad","partie1 produit2 "]
[null,null,"partie1 produit1 blanc "]
[null,null,"partie1 produit1 jaune "]
[]
["Sem 37","Mag2 ","produit1 x2 blanc"]
[]
[null,"Mag2 ","produit1 x2 jaune"]
[]
["Sem 41","Mag2 Trad","partie1 produit2 "]
[null,null,null," "]
[]
["Sem 43","Mag2 ","produit1  jaune x4"]
[null,null,"produit1  noir x4"]
[null,null,"partie1 produit1 jaune x4"]
[null,null,"partie3 produit1  jaune x2"]
[]
["Sem 49 à 52","Mag2 ","produit3 x4 "]
[null,null,"produit3 x4 "]

{"sheet":"Mag2","index":2,"n_rows":410,"n_cols":19,"rows_kept":410,"cut":false,"hidden":false,"merged":[[2,2,3,4]]}
[]
[]
[null,null,"POINT SUR OPERATIONS  2016"]
[]
[null,null,null,"Mag2"]
[]
[]
[]
["Période","Centrale","Articles","Tonnage Prévu","Tonnage réalisé","Observation"]
["Sem 2","Mag2 Trad","partie4 produit2 ","remontee 54 colis","54 coli 269 kgs"]
[]
["Sem 6","Mag2","partie3 produit2 ",null,"413 colis 3 900 kgs"]
[null,null,"partie3 produit1 blc ",null,"276 colis 2 832 kgs"]
[null,null,"partie3 produit1 jne ",null,"315 colis 3 193 kgs"]
[]
["Sem 9","Mag2","produit1 x2 blanc",null,"189 colis 756 lots"]
[null,null,"produit1 x2 jaune",null,"674 colis 2 696 lots"]
[null,null,"partie9  x4 blche 29010",null,"185 colis 403 kgs"]
[null,null,"partie9  x4 jaune 29011",null,"575 colis 1 252 kgs"]
[]
["Sem 10","Mag2 Trad","partie1 produit2  5 kgs","400  colis  2t5","441 colis 3 482 kgs"]
[]
["Sem 11","Mag2 Trad","Bloc produit2  10 kgs",null,"388 colis  4 617 kgs"]
[]
[]
["Sem 14","Mag2","partie9 de produit2 x6",null,"465 colis 2 790 kgs"]
[]
[]
["Sem 14","Mag2","produit1   jaune","3 000 pièces","563 colis 3 809 pièces"]
[null,null,"produit1   noir","1 500 pièces","193 colis 1 285 pièces"]
[null,null,"produit1","2 000 pièces","289 colis 1 945 pièces"]
[null,null,"partie1 produit1  x2 jaune",null,"627 colis 2 062 kgs"]
[null,null,"partie1 produit1  x2 noir",null,"192 colis 684 kgs"]
[null,null,"partie3 produit1  x2 jaune",null,"745 colis 1 334 kgs"]
[null,null,"partie3 produit1  x2 noir",null,"238 colis 404 kgs"]
[null,null,"produit1 x2 blanc",null,"690 colis 2 760 pièces"]
[null,null,"partie2 produit1  blche",null,"512 colis 513 kgs"]
[null,null,"partie2 produit1  jaune",null,"526 colis 2 183 kgs"]
[]
["Sem 15 et 16","Mag2 Trad","partie1 de produit2 ",null,"507 colis 2 028 kgs"]
[]
["Sem 17","Mag2 ÉTÉ","partie1 produit1 ",null,"630 colis 2 632 kgs"]
[]
["Sem 18","Mag2 ÉTÉ","partie2 produit1 ",null,"628 colis 1 884 kgs"]
[]
[]
["Sem 19","Mag2 Trad","partie3 produit2 s/v","399 colis","399 colis 3 910 kgs"]
[]
["Sem 19","Mag2 ÉTÉ","produit1  ",null,"287 colis 1 377 kgs"]
[]
["Sem 21","Mag2 ÉTÉ"," x8",null,"292 colis 934 kgs"]
[]
[]
["Sem 21","Mag2 Trad","produit8 x11",null,"168 colis  840 kgs"]
[null,null,"produit8 x11",null,"380 colis 1 900 kgs"]
[null,null,"produit8 x11",null,"250 colis 500 kgs"]
[null,null,"produit8 x11",null,"313 colis 1 565 kgs"]
[]
["Sem 21","Mag2 ÉTÉ"," x12",null,"681 colis 3 268 kgs"]
[]
["Sem 21","Mag2 ÉTÉ","produit8 x11",null,"250 colis 450 kgs"]
[null,null,"produit8 x11",null,"254 colis 457 kgs"]
[null,null,"produit8 x11",null,"223 colis 401 kgs"]
[]
["Sem 23","Mag2 ÉTÉ","partie1 produit2 ",null,"350 colis  1 771 kgs"]
[null,null,"partie2ron produit1 ",null,"402 colis  1 285 kgs"]
[]
["Sem 23","Mag2 Trad","partie1 produit2 ",null,"378 colis 4 433 kgs"]
[]
["Sem 25","Mag2","produit1",null,"7 colis"]
[null,null,"produit1",null,"95 colis"]
[]
["Sem 26","Mag2","produit1",null,"32 colis "]
[null,null,"produit1",null,"3 colis "]
[]
["Sem 26","Mag2 ÉTÉ","partie2ron produit1 ",null,"756  colis 2 484 kgs"]
[null,null,"partie2ron produit1 ",null,"603 colis 1 947 kgs"]
[]
["Sem 26","Mag2 Trad","partie1 produit2 ",null,"330 colis 2 334 kgs"]
[null,null,"partie3 produit2 ",null,"309 colis 3 543 kgs"]
[null,null,"partie1 produit1   blche",null,"197 colis 1 866 kgs"]
[null,null,"partie1 produit1   jaune",null,"248 colis 2 406 kgs"]
[null,null,"partie3 produit1  blc 10kgs",null,"166 colis 1 451 kgs"]
[null,null,"partie3 produit1  jne 10kgs",null,"328 colis 2 790 kgs"]
[]
["Sem 27","Mag2","produit1  ",null,"52 colis "]
[null,null,"produit1  ",null," 3 colis "]
[]
[]
["Sem 27","Mag2 ÉTÉ"," produit2 x12",null,"198 colis 999 kgs"]
[]
["Sem 27","Mag2 ÉTÉ","produit8 x6",null,"298 colis 536 kgs"]
[null,null,"produit8 x7",null,"276 colis 497 kgs"]
[null,null,"produit8s s x6",null,"231 colis 415 kgs"]
[]
[]
["Sem 28","Mag2  Trad","partie1 produit1 jaune ",null,"262 colis 2 356 kgs"]
[null,null,"partie1 produit1 blc ",null,"87 colis 788 kgs"]
[]
["Sem 29","Mag2 ÉTÉ","produit8 x6","19 colis","49 colis 88 kgs"]
[null,null,"produit8 x6","18 colis","52 colis 93 kgs"]
[null,null,"produit8  x6","19 colis","41 colis 73 kgs"]
[]
["Sem 30","Mag2 Trad","Haut de partie1 produit1"]
[null,null,"Haut de partie1 produit1"]
[]
["Sem 31","Mag2 ÉTÉ","produit8 x5"]
[null,null,"produit8 x6"]
[null,null,"produit8 x6 s"]
[]
["Sem 32","Mag2 Trad","partie3 produit2 "]
[null,null,"partie3 produit1 blanc "]
[null,null,"partie3 produit1 jaune "]
[]
["Sem 34","Mag2 ÉTÉ"," produit2 x12"]
[]
["Sem 35","Mag2 Trad","partie1 produit2 "]
[null,null,"partie1 produit1 blanc "]
[null,null,"partie1 produit1 jaune "]
[]
["Sem 35","Mag2 ","produit1  jaune sf"]
[null,null,"produit1  blanc sf"]
[]
["Sem 36","Mag2 Trad","produit1","4 000 pièces"]
[]
[]
["Sem 36 et 37","Mag2 ","Aiguillette produit1"]
[null,null,"Aiguillette produit1"]
[]
["Sem 36 ","Mag2 Trad","partie1 produit2 "]
[null,null,"partie1 produit1 blanc "]
[null,null,"partie1 produit1 jaune "]
[]
["Sem 37","Mag2 ","produit1 x2 blanc"]
[]
[null,"Mag2 ","produit1 x2 jaune"]
[]
["Sem 41","Mag2 Trad","partie1 produit2 "]
[null,null,null," "]
[]
["Sem 43","Mag2 ","produit1  jaune x4"]
[null,null,"produit1  noir x4"]
[null,null,"partie1 produit1 jaune x4"]
[null,null,"partie3 produit1  jaune x2"]
[]
["Sem 49 à 52","Mag2 ","produit3 x4 "]
[null,null,"produit3 x4 "]
[]
[]
[]
[]
[]
[]
[]
[]
[]
[]
[]
[]
[]
[]
[]
[]
[]
[]
[]
[]
[]
[]
[]
[]
[]
[]
[]
[]
[]
[]
[]
[]
[]
[]
[]
[]
[]
[]
[]
[]
[]
[]
[]
[]
[]
[]
[]
[]
[]
[]
[]
[]
[]
[]
[]
[]
[]
[]
[]
[]
[]
[]
[]
[]
[]
[]
[]
[]
[]
[]
[]
[]
[]
[]
[]
[]
[]
[]
[]
[]
[]
[]
[]
[]
[]
[]
[]
[]
[]
[]
[]
[]
[]
[]
[]
[]
[]
[]
[]
[]
[]
[]
[]
[]
[]
[]
[]
[]
[]
[]
[]
[]
[]
[]
[]
[]
[]
[]
[]
[]
[]
[]
[]
[]
[]
[]
[]
[]
[]
[]
[]
[]
[]
[]
[]
[]
[]
[]
[]
[]
[]
[]
[]
[]
[]
[]
[]
[]
[]
[]
[]
[]
[]
[]
[]
[]
[]
[]
[]
[]
[]
[]
[]
[]
[]
[]
[]
[]
[]
[]
[]
[]
[]
[]
[]
[]
[]
[]
[]
[]
[]
[]
[]
[]
[]
[]
[]
[]
[]
[]
[]
[]
[]
[]
[]
[]
[]
[]
[]
[]
[]
[]
[]
[]
[]
[]
[]
[]
[]
[]
[]
[]
[]
[]
[]
[]
[]
[]
[]
[]
[]
[]
[]
[]
[]
[]
[]
[]
[]
[]
[]
[]
[]
[]
[]
[]
[]
[]
[]
[]
[]
[]
[]
[]
[]
[]
[]
[]
[]
[]
[]
[]
[]
[]
[]
[]
[]
[]
[]
[]
[]
[]
[null,null,null,null,null,null,"Poulet x2 Royal (8202)","Sem 35 et 36","Mag5",null,"Poulet x2 Royal (8202)","Sem 35 et 36","Mag5",null,"Poulet x2 Royal (8202)","Sem 35 et 36","Mag5",null,"Poulet x2 Royal (8202)"]

{"sheet":"Mag3","index":3,"n_rows":45,"n_cols":6,"rows_kept":45,"cut":false,"hidden":false,"merged":[[2,2,3,4]]}
[]
[]
[null,null,"POINT SUR OPERATIONS  2016"]
[]
[null,null,null,"Mag3"]
[]
[]
[]
["Période","Centrale","Articles","Tonnage Prévu","Tonnage réalisé","Observation"]
["Sem 4 et 5","Mag3","partie3 de produit1 x6",null,"4 502 colis 13 729kgs"]
[null,null,"Lot produit5 12501",null,"366 colis 1 561 kgs"]
[]
["Sem 10","Mag3","produit1   jaune","9 000 pièces","869 colis 6 083 pièces"]
[null,null,"Haut de partie1 de produit1 ",null,"1 413 colis 4 366 kgs"]
[]
["Sem 11 et 12","Mag3","produit4 ","7 500 pièces","839 colis 6 284 pièces"]
[null,null," produit2 ",null,"142 colis 710 pièces"]
[]
["Sem 16","Mag3","partie1 produit1 x6","480 colis","366 colis 1 576 kgs"]
[null,null," produit2 x6","1 170 colis","842 colis 4 476 kgs"]
[null,null,null," "]
["Sem 21","Mag3","partie1 produit1 x6",null,"1 561 colis 8 415 kgs"]
[null,null,"partie3 produit1 x6",null,"2 279 colis 8 642 kgs"]
[]
["Sem 22 et 23","Mag3","produit3 x3 ",null,"474 colis  1 610 kgs"]
[null,null,"produit3 x3 ",null,"474 colis 1 622 kgs"]
[null,null,"Mini  produit1  ",null,"287 colis 1 087 kgs"]
[null,null,"Mini  produit1 ",null,"264 colis 1 001 kgs"]
[null,null,"Mini  produit1 ",null,"272 colis 1 043 kgs"]
[]
["Sem 25","Mag3"," produit2 x6",null,"392 colis 1 676 kgs"]
[null,null,"partie3 +partie1 produit1",null,"454 colis  2 526 kgs"]
[null,null,"partie6 de produit1",null,"1 133 colis 4 532 kgs"]
[]
["Sem 27","Mag3","produit1  (8200)",null,"936 pces et 1 084 pces"]
[null,null,"produit1",null,"320 pces et 410 pces"]
[]
["Sem 34 et 35","Mag3","partie1 produit2 "]
[]
[]
["Sem 44 et 45","Mag3","produit3 s x4 s/at"]
[null,null,"produit3 x4 "]
[null,null,"produit3 x4 "]
[null,null,"produit3 x4 "]
[null,null,"produit3 x4 "]

{"sheet":"Mag4","index":4,"n_rows":104,"n_cols":6,"rows_kept":104,"cut":false,"hidden":false,"merged":[[2,2,3,4]]}
[]
[]
[null,null,"POINT SUR OPERATIONS  2016"]
[]
[null,null,null,"Mag4"]
[]
[]
[]
["Période","Centrale","Articles","Tonnage Prévu","Tonnage réalisé","Observation"]
["Sem 1","Mag4 Trad","Bloc produit2             ming",null,"200  colis promo retle +  494 colis FDC"]
[null,null,"partie1 produit2         Ming",null,"209 colis promo +  320 colis FDC"]
[]
["Sem 1 et 2","Mag4 Trad","produit3  x4",null,"119 colis  375 kgs"]
[]
["Sem 2","Mag4 Trad","Bloc produit2             ONC","800 colis promo +  colis  140 FDC"," 951 colis promo retle +  179 colis FDC"]
["Sem 2","Mag4 Trad","partie1 produit2         Ming","700 colis promo +  150 colis FDC","742colis promo retle+  160 colis FDC"]
[]
["Sem 3","Mag4 Trad","produit1  ",null,"170 colis 680 pièces"]
[]
["Sem 4","Mag4 ","partie1 produit1 3 kgs (10506) ONC","Prev 3 T","796 colis  2 810 kgs"]
[]
["Sem 5 et 6 ","Mag4 Trad","produit4 ",null,"84 colis 332 pièces"]
[]
["Sem 7 et 8","Mag4 Trad","produit3 Trad 12238",null,"124 colis 389 kgs"]
[]
["Sem 9","Mag4 ","produit1   Jaune","6 à 7 000 pièces","1 268 colis  5 072 pièces"]
[]
["Sem 9 et 10","Mag4 Trad","produit6 trad  (12505)",null,"124 colis 992 pièces"]
[]
["Sem 11 et 12","Mag4 Trad","produit4 ",null,"67 colis  268 pièces"]
[]
["Sem 12 et 13","Mag4 Trad","Bloc de produit2",null,"entrepot1 189 colis / entrepot2 78 colis "]
[]
["Sem 13 et 14","Mag4 Trad","produit1  ",null,"200 colis 800 pièces"]
[]
["Sem 15","Mag4 ","produit5 12500",null,"425 colis 962 kgs"]
[]
["Sem 15 et 16","Mag4 Trad","produit1  ",null,"128 colis  512 pièces"]
[]
["Sem 17 et 18","Mag4 Trad","produit1  ",null,"60 colis 285 kgs"]
[null,null,"produit8 s ",null,"29 colis  64 kgs"]
[]
["Sem  19","Mag4 ","produit1   Jaune","6 à 7 000 pièces","1408 colis 5 632 pièces"]
[" "]
["Sem 19 et 20","Mag4 Trad","produit1  ",null,"45 colis 216 kgs"]
[null,null,"produit2",null,"53 colis 117 kgs"]
[]
["Sem 21 et 22","Mag4 Trad","produit8 x11",null,"27 colis  123 kgs"]
[null,null,"produit8 ",null,"51 colis 108 kgs"]
[]
["Sem  21 à 24","Mag4 ","produit1 blc  "]
[null,"Mag4 ","produit1 jne "]
[null,"Mag4 ","partie1 produit1 x6 blche "]
[null,null,"partie1 produit1 x6 jne "]
[null,null,"partie3 produit1 x6 jne "]
[null,null,"partie3 produit1 x6 blc "]
[null,null," produit2 x6 "]
[null,null,"produit8 x11 "]
[null,null,"Merguez x11 "]
[]
["Sem 23 et 24","Mag4 Trad","produit4 ",null,"45 colis 180  pces"]
[]
["Sem  23 et 24","Mag4 ","produit1 blc  "]
[null,"Mag4 ","produit1 jne "]
[null,"Mag4 ","partie1 produit1 x6 blche "]
[null,null,"partie1 produit1 x6 jne "]
[null,null,"partie3 produit1 x6 jne "]
[null,null,"partie3 produit1 x6 blc "]
[null,null," produit2 x6 "]
[null,null,"produit8 x11 "]
[null,null,"produit3 x3 "]
[null,null,"produit3 x3 "]
[null,null,"produit3 x3 "]
[]
["Sem  25 et 26","Mag4 TRAD","partie3 produit2 ",null,"62 colis 132 kgs"]
[]
[]
["Sem  27 et 28","Mag4 TRAD","produit8  ",null,"102 colis  2 062kgs"]
[]
["Sem  31 et 32","Mag4 TRAD","produit1 "]
[null,null,"produit2"]
[]
["Sem  33","Mag4 ","partie9 de produit2 x6 "]
[]
[]
["Sem  37","Mag4 ","produit1   Jaune","6 à 7 000 pièces"]
[]
["Sem  37 et 38","Mag4 TRAD","produit1   Jaune"]
[]
["Sem 37","Mag4 ","produit1   Jaune"]
[]
[]
["Sem  39 et 40","Mag4 TRAD","produit4 "]
[]
["Sem  40","Mag4","produit1 x2"]
[null,null,"partie1 produit1 3kgs 10506"]
[null,null,"partie3 produit1 x8  21443"]
[]
["Sem  41 et 42","Mag4 TRAD","produit3 x4   s"]
[]
["Sem  41 ","Mag4","partie9 de produit2 x6 "]
[]
[]
["Sem  43 et 44","Mag4 TRAD","produit3 x4 "]

{"sheet":"Mag5","index":5,"n_rows":25,"n_cols":6,"rows_kept":25,"cut":false,"hidden":false,"merged":[[2,2,3,4]]}
[]
[]
[null,null,"POINT SUR OPERATIONS  2016"]
[]
[null,null,null,"Mag5"]
[]
[]
[]
["Période","Centrale","Articles","Tonnage Prévu","Tonnage réalisé","Observation"]
["Sem 53 et 1","Mag5","produit1 x2 "," remontee 1 390 colis","1 771 colis cdés/1 584 colis livrés 6 336 pièces"]
[]
["Sem 2 et 3","Mag5","produit1  ","4 000 pces remontee 3 605 pces","604 colis 4 228 pièces"]
[]
["Sem 3 et 4","Mag5","produit1  ","Dispo 3 000 pièces","256 colis 1 792 pièces"]
[null,null,"produit4 ","Dispo 3 000 pièces","77 colis  616 pièces"]
[]
["Sem 8 et 9","Mag5","produit1 lot x2",null,"204 colis 816 pièces"]
[]
["Sem 13 ","Mag5","produit1 x2 ","765 colis","631 colis 2 524 pièces"]
[]
[]
["Sem 26","Mag5","Haut partie1 produit1 ",null,"225 colis "]
[null,null,"Haut partie1 produit1 ",null,"210 colis"]
[]
["Sem 37","Mag5","produit1 x1","193 colis 1 544 pces"]

{"sheet":"Mag6","index":6,"n_rows":44,"n_cols":6,"rows_kept":44,"cut":false,"hidden":false,"merged":[[2,2,3,4]]}
[]
[]
[null,null,"POINT SUR OPERATIONS  2016"]
[]
[null,null,null,"Mag6"]
[]
[]
[]
["Période","Centrale","Articles","Tonnage Prévu","Tonnage réalisé","Observation"]
["Sem 2","Mag6","produit1   Noir","2 500 pièces","1 981 pièces  2320 kgs"]
[]
["Sem 5 à 8","Mag6","produit4",null,"18 colis 144 pièces"]
[]
["Sem 6","Mag6","produit1   Noir","2 500 pièces","345 colis 2 415 pièces"]
[]
["Sem 9","Mag6","produit1   Noir","2 500 pièces","292 colis  2 044 pièces"]
[]
["Sem 12 ","Mag6"," produit2 ",null,"28 colis  229 kgs"]
[null,null,"Coffret produit3",null,"20 colis  80 kgs"]
[null,null,"produit3",null,"17 colis  56 kgs"]
[]
["Sem 15 et 16","Mag6","produit1  noir s/f","242 colis ","260 colis  1 820 pièces"]
[]
["Sem 19","Mag6"," partie3 ( 22649)","538 colis","759 colis 2 826 kgs"]
[]
["Sem 20","Mag6","produit1   Noir","2 500 pièces","317 colis 2 219 pièces"]
[]
["Sem 21","Mag6"," partie3 ( 22649)",null,"102 colis 385 kgs"]
[]
["Sem 22","Mag6","produit4",null,"236 pièces  306 kgs"]
[null,null,"produit1  noir",null,"441 pièces 722 kgs"]
[null,null,"produit3 x3 ",null,"39 colis 131 kgs"]
[null,null,"produit3 x3 ",null,"34 colis 114 kgs"]
[]
["Sem 22","Mag6","produit3 x3 ","445 colis","499 colis  2 321 kgs"]
[]
[]
["Sem 24","Mag6","produit1  Noir","235 colis ","273 colis 1 911 pièces"]
[]
["Sem 25","Mag6","Haut de partie1 produit1 ","294 colis","387 colis 1 548 pièces"]
[]
["Sem 25 et 26","Mag6"," partie3 produit1"," ","321 colis  866 kgs"]
[null,null,null,null," "]
["Sem 28","Mag6","produit1  noir","244 colis 1708 pièces","276 colis 1 838 pièces"]

{"sheet":"Mag7","index":7,"n_rows":44,"n_cols":6,"rows_kept":44,"cut":false,"hidden":false,"merged":[[2,2,3,4]]}
[]
[]
[null,null,"POINT SUR OPERATIONS  2015"]
[]
[null,null,null,"Mag7"]
[]
[]
[]
["Période","Centrale","Articles","Tonnage Prévu","Tonnage réalisé","Observation"]
["Sem 1","Mag7","partie9 de produit2 x6 neutre","dispo 3 tonnes / remontée 6t","1 021 colis 6 371 kgs"]
[]
["Sem 2","Mag7","produit1   Jaune","Dispo 2 000 pces / Remontée 3 493 pces","584 colis  3 696 pièces"]
[]
["Sem 6 et 7","Mag7","partie1 de produit2 ","10 Tonnes","1 880 colis 5 600 kgs"]
[]
["Sem 10","Mag7"," partie3 s/at","705 colis ","712 colis 3 146 kgs"]
[]
["Sem 16","Mag7"," produit2 x6",null,"805 colis 3 454 kgs"]
[]
["Sem 18 et 19","Mag7","produit1  ","500 pièces","130 colis 910 pièces"]
[]
["Sem 25 et 26","Mag7"," partie3 produit1",null,"636 colis 1 717 kgs"]
[]
["Sem 27","Mag7"," partie3 produit1 ",null,"425 colis 1 147 kgs"]
[null,null," partie3 produit1 ",null,"437 colis 1 179 kgs"]
[null,null," partie3 produit1 ",null,"443 colis 1 196 kgs"]
[]
["Sem 29","Mag7","partie1 produit1  x2",null,"404 colis 1 185 kgs"]
[null,null,"partie1 produit1",null,"322 colis 962  kgs"]
[null,null,"partie1 produit1  x2",null,"402 colis 1 222 kgs"]
[]
["Sem 33","Mag7"," produit2","268 colis"]
[null,null," produit3","267 colis"]
[null,null," produit4","292 colis"]
[]
["Sem 36 et 37","Mag7","produit1","800 pièces"]
[]
[]
["Sem 36","Mag7","partie9 + partie1 produit2"]
[]
[]
["Sem 40 et 41","Mag7","produit1  jaune "]
[null,null,"produit4"]
[null,null,"partie1 x4 jne"]

{"sheet":"Mag8","index":8,"n_rows":71,"n_cols":8,"rows_kept":71,"cut":false,"hidden":false,"merged":[[2,2,3,4]]}
[]
[]
[null,null,"POINT SUR OPERATIONS  2016"]
[]
[null,null,null,"Mag8"]
[]
[]
[]
["Période","Centrale","Articles","Tonnage Prévu","Tonnage réalisé","Observation"]
["Sem 1 à 4","Mag8","partie5 x4",null,"75 colis 257 kgs"]
[null,null,"produit3 x4 ",null,"4 colis 12 kgs"]
[null,null,"produit3 x4 ",null,"5 colis 15 kgs",null,null," "]
[null,null,"partie1 produit1 x4",null,"576 colis 2 835 kgs"]
[null,null,"partie3 produit1 x6",null,"535 colis 2 119 kgs"]
[null,null,"partie2 produit1 ",null,"561 colis 2 284 kgs"]
[null,null,"partie6 produit1 x10",null,"466 colis 1 166 kgs"]
[null,null,"Haut partie1 produit1",null,"122 colis 447 kgs"]
[null,null,"partie7 de produit1",null,"153 colis 512  kgs"]
[null,null,"partie8 produit1 pot",null,"483 colis 838 kgs"]
[null,null,"produit4",null,"69 colis 276 pièces"]
[]
["Sem 10 à 12","Mag8","partie5 produit2 x4"]
[null,null,"produit3 x4 ",null,null,null," "]
[null,null,"produit3 x4 "]
[]
["Sem 19","Mag8","produit5 12500","119 colis","119 colis 277 kgs"]
[]
["Sem 20 21 et 22","Mag8","produit8 x11","68 colis","57 colis 188 kgs"]
[null,null,"produit8s x11","83 colis","68 colis 224 kgs"]
[null,null,"produit2","99 colis","81 colis 267 kgs"]
[null,null," partie3 produit1 x3 ","76 colis","59 colis 159 kgs"]
[null,null," partie3 produit1 x3 ","72 colis","50 colis 135 kgs"]
[null,null," partie3 produit1 x3  ","84 colis","66 colis  178 kgs"]
[null,null," produit2 x6","133 colis","109 colis  470 kgs"]
[]
[]
["Sem 21 à 23","Mag8","produit8 x11","92 colis","51 colis 168 kgs"]
[null,null,"produit8 x11  ","88 colis","64 colis 178 kgs"]
[null,null,"produit8 x11","82 colis","21 colis 66 kgs"]
[null,null," produit2 x6 ","41 colis"]
[null,null,"partie9 produit2 x2 ","49 colis","54 colis 79 kgs"]
[null,null,"partie3 produit1 x2 ",null,"77 colis 175 kgs"]
[null,null,"partie1 produit1 x6 "]
[]
["Sem 25","Mag8","produit3 x3 "]
[]
[]
["Sem 27 28 et 29","Mag8","produit8 x11  ",null,"30 colis 100 kgs"]
[null,null,"produit8 x11  ",null,"32 colis 106 kgs"]
[null,null,"produit8s s x11 ",null,"36 colis 117 kgs"]
[null,null," produit2 x6",null,"113 colis 529 kgs"]
[null,null," produit2 x7",null,"10 colis 23 kgs"]
[null,null," produit2 x8",null,"15 colis 32 kgs"]
[null,null," produit2 x9",null,"34 colis 74 kgs"]
[null,null," produit2 x10"]
[null,null," ",null,"52 colis 153 kgs"]
[null,null," ",null,"52 colis 144 kgs"]
[null,null,"   ",null,"40 colis 110 kgs"]
[]
["Sem 38 ET 39","Mag8","Haut partie1 de produit1 "]
[null,null,"partie9 de produit2 poids fixe"]
[null,null,"partie6 de produit1"]
[null,null,"partie4 de produit2"]
[null,null,"partie1 produit2 x1"]
[null,null,"partie3 produit1 x6"]
[null,null,"partie5 de produit2"]
[null,null,"partie5 de produit3"]
[null,null,"partie5 de produit4"]
[null,null,"produit3 x4 "]
[null,null,"produit3 x4 "]
[null,null,"produit4"]

{"sheet":"Mag9","index":9,"n_rows":1002,"n_cols":6,"rows_kept":1002,"cut":false,"hidden":false,"merged":[[2,2,3,4],[4,2,4,4]]}
[]
[]
[]
[]
[]
[]
[]
[]
["Période","Centrale","Articles","Tonnage Prévu","Tonnage réalisé","Observation"]
["Sem 18","Mag9 été"," produit2 poids fixe 400 grs","2 158 colis","2 499 colis 5 997 kgs"]
[]
["Sem 18","Mag9 été","partie1 produit1  ","1 865 colis","1 787 colis 7 148 kgs"]
[]
["Sem 19","Mag9 One shot","produit1  ","178 colis","178 colis 267 kgs"]
[]
[]
["Sem 20","Mag9 One shot","partie8","300 colis ","300 colis 1 080 kgs "]
[]
[]
["Sem 22","Mag9 été"," produit2 poids fixe 400 grs","1 775 colis","1 776 colis  4 262 kgs"]
[]
[]
["Sem 24","Mag9 été","produit3 x3 ","500 colis","500 colis  750 kgs"]
[]
["Sem 24","Mag9 été","produit3 x3 ","266 colis","266 colis  957 kgs"]
[]
["Sem 25","Mag9 été","partie3 produit2 ","182 colis","182 colis  273 kgs"]
[]
["Sem 25","Mag9 été","partie3 produit2 ","205 colis","205 colis 738 kgs"]
[]
["Sem 28","Mag9 été"," produit2 poids fixe 400 grs","Anlé"]
[]
[]
["Sem 31","Mag9 été","partie1 de produit1","2 322 colis"]
[]
["Sem 33","Mag9 One shot","partie8","134 colis"]
[]
[]
["Sem 34","Mag9 été"," produit2","873 colis"]
[]
["Sem 35","Mag9 One shot","partie1 produit2 ","216 colis"]
[null,null,"partie1 produit2 ","250 colis"," "]
[]
["Sem 35","Mag9 One shot","partie1 produit2 ","634 colis"]
[]
[]
[]
[]
[]
[]
[]
[]
[]
[]
[]
[]
[]
[]
[]
[]
[]
[]
[]
[]
[]
[]
[]
[]
[]
[]
[]
[]
[]
[]
[]
[]
[]
[]
[]
[]
[]
[]
[]
[]
[]
[]
[]
[]
[]
[]
[]
[]
[]
[]
[]
[]
[]
[]
[]
[]
[]
[]
[]
[]
[]
[]
[]
[]
[]
[]
[]
[]
[]
[]
[]
[]
[]
[]
[]
[]
[]
[]
[]
[]
[]
[]
[]
[]
[]
[]
[]
[]
[]
[]
[]
[]
[]
[]
[]
[]
[]
[]
[]
[]
[]
[]
[]
[]
[]
[]
[]
[]
[]
[]
[]
[]
[]
[]
[]
[]
[]
[]
[]
[]
[]
[]
[]
[]
[]
[]
[]
[]
[]
[]
[]
[]
[]
[]
[]
[]
[]
[]
[]
[]
[]
[]
[]
[]
[]
[]
[]
[]
[]
[]
[]
[]
[]
[]
[]
[]
[]
[]
[]
[]
[]
[]
[]
[]
[]
[]
[]
[]
[]
[]
[]
[]
[]
[]
[]
[]
[]
[]
[]
[]
[]
[]
[]
[]
[]
[]
[]
[]
[]
[]
[]
[]
[]
[]
[]
[]
[]
[]
[]
[]
[]
[]
[]
[]
[]
[]
[]
[]
[]
[]
[]
[]
[]
[]
[]
[]
[]
[]
[]
[]
[]
[]
[]
[]
[]
[]
[]
[]
[]
[]
[]
[]
[]
[]
[]
[]
[]
[]
[]
[]
[]
[]
[]
[]
[]
[]
[]
[]
[]
[]
[]
[]
[]
[]
[]
[]
[]
[]
[]
[]
[]
[]
[]
[]
[]
[]
[]
[]
[]
[]
[]
[]
[]
[]
[]
[]
[]
[]
[]
[]
[]
[]
[]
[]
[]
[]
[]
[]
[]
[]
[]
[]
[]
[]
[]
[]
[]
[]
[]
[]
[]
[]
[]
[]
[]
[]
[]
[]
[]
[]
[]
[]
[]
[]
[]
[]
[]
[]
[]
[]
[]
[]
[]
[]
[]
[]
[]
[]
[]
[]
[]
[]
[]
[]
[]
[]
[]
[]
[]
[]
[]
[]
[]
[]
[]
[]
[]
[]
[]
[]
[]
[]
[]
[]
[]
[]
[]
[]
[]
[]
[]
[]
[]
[]
[]
[]
[]
[]
[]
[]
[]
[]
[]
[]
[]
[]
[]
[]
[]
[]
[]
[]
[]
[]
[]
[]
[]
[]
[]
[]
[]
[]
[]
[]
[]
[]
[]
[]
[]
[]
[]
[]
[]
[]
[]
[]
[]
[]
[]
[]
[]
[]
[]
[]
[]
[]
[]
[]
[]
[]
[]
[]
[]
[]
[]
[]
[]
[]
[]
[]
[]
[]
[]
[]
[]
[]
[]
[]
[]
[]
[]
[]
[]
[]
[]
[]
[]
[]
[]
[]
[]
[]
[]
[]
[]
[]
[]
[]
[]
[]
[]
[]
[]
[]
[]
[]
[]
[]
[]
[]
[]
[]
[]
[]
[]
[]
[]
[]
[]
[]
[]
[]
[]
[]
[]
[]
[]
[]
[]
[]
[]
[]
[]
[]
[]
[]
[]
[]
[]
[]
[]
[]
[]
[]
[]
[]
[]
[]
[]
[]
[]
[]
[]
[]
[]
[]
[]
[]
[]
[]
[]
[]
[]
[]
[]
[]
[]
[]
[]
[]
[]
[]
[]
[]
[]
[]
[]
[]
[]
[]
[]
[]
[]
[]
[]
[]
[]
[]
[]
[]
[]
[]
[]
[]
[]
[]
[]
[]
[]
[]
[]
[]
[]
[]
[]
[]
[]
[]
[]
[]
[]
[]
[]
[]
[]
[]
[]
[]
[]
[]
[]
[]
[]
[]
[]
[]
[]
[]
[]
[]
[]
[]
[]
[]
[]
[]
[]
[]
[]
[]
[]
[]
[]
[]
[]
[]
[]
[]
[]
[]
[]
[]
[]
[]
[]
[]
[]
[]
[]
[]
[]
[]
[]
[]
[]
[]
[]
[]
[]
[]
[]
[]
[]
[]
[]
[]
[]
[]
[]
[]
[]
[]
[]
[]
[]
[]
[]
[]
[]
[]
[]
[]
[]
[]
[]
[]
[]
[]
[]
[]
[]
[]
[]
[]
[]
[]
[]
[]
[]
[]
[]
[]
[]
[]
[]
[]
[]
[]
[]
[]
[]
[]
[]
[]
[]
[]
[]
[]
[]
[]
[]
[]
[]
[]
[]
[]
[]
[]
[]
[]
[]
[]
[]
[]
[]
[]
[]
[]
[]
[]
[]
[]
[]
[]
[]
[]
[]
[]
[]
[]
[]
[]
[]
[]
[]
[]
[]
[]
[]
[]
[]
[]
[]
[]
[]
[]
[]
[]
[]
[]
[]
[]
[]
[]
[]
[]
[]
[]
[]
[]
[]
[]
[]
[]
[]
[]
[]
[]
[]
[]
[]
[]
[]
[]
[]
[]
[]
[]
[]
[]
[]
[]
[]
[]
[]
[]
[]
[]
[]
[]
[]
[]
[]
[]
[]
[]
[]
[]
[]
[]
[]
[]
[]
[]
[]
[]
[]
[]
[]
[]
[]
[]
[]
[]
[]
[]
[]
[]
[]
[]
[]
[]
[]
[]
[]
[]
[]
[]
[]
[]
[]
[]
[]
[]
[]
[]
[]
[]
[]
[]
[]
[]
[]
[]
[]
[]
[]
[]
[]
[]
[]
[]
[]
[]
[]
[]
[]
[]
[]
[]
[]
[]
[]
[]
[]
[]
[]
[]
[]
[]
[]
[]
[]
[]
[]
[]
[]
[]
[]
[]
[]
[]
[]
[]
[]
[]
[]
[]
[]
[]
[]
[]
[]
[]
[]
[]
[]
[]
[]
[]
[]
[]
[]
[]
[]
[]
[]
[]
[]
[]
[]
[]
[]
[]
[]
[]
[]
[]
[]
[]
[]
[]
[]
[]
[]
[]
[]
[]
[]
[]
[]
[]
[]
[]
[]
[]
[]
[]
[]
[]
[]
[]
[]
[]
[]
[]
[]
[]
[]
[]
[]
[]
[]
[]
[]
[]
[]
[]
[]
[]
[]
[]
[]
[]
[]
[]
[null,null,null,null,null,{"$f":"IFERROR(INDEX(GLOBAL!G$5:G$471,SMALL(ROW(GLOBAL!$B$5:$B$471)*(GLOBAL!$B$5:$B$471=\"Carr\"),COUNTIF(GLOBAL!$B$5:$B$471,\"<>Carr\")+ROW()-9)-4),\"\")","v":""}]
[null,null,null,null,null,{"$f":"IFERROR(INDEX(GLOBAL!G$5:G$471,SMALL(ROW(GLOBAL!$B$5:$B$471)*(GLOBAL!$B$5:$B$471=\"Carr\"),COUNTIF(GLOBAL!$B$5:$B$471,\"<>Carr\")+ROW()-9)-4),\"\")","v":""}]